Cogmind - Beta 9.6 @@@ ROGUE MODE // 2020.06.12 @ 10:21:17 Player: Demise Result: Destroyed by 8R-AWN with 8R-AWN's Boregun Performance ------------- Evolutions (0) 0 Regions Visited (3) 600 Robots Destroyed (37) 185 Value Destroyed (703) 703 Prototype IDs (22) 440 Alien Tech Used (0) 0 Bonus (300) 300 TOTAL SCORE: 2228 Bonus ------- Aligned with FarCom 300 Cogmind --------- Core Integrity 0/250 Matter 20/300 Energy 100/100 System Corruption 0% Temperature Cool (277) Movement Core (700) Ox13 Location -10/Exiles Parts ------- > --- POWER (1) -------- (None) > --- PROPULSION (2) --- (None) > --- UTILITY (2) ------ High-capacity Storage Unit Utility Shielding > --- WEAPON (2) ------- Improved Light Cannon Improved Light Cannon > --- INVENTORY (12) --- (None) Peak State ------------ > --- POWER ------------ Ion Engine > --- PROPULSION ------- Improved Treads Advanced Treads > --- UTILITY ---------- Humpback > --- WEAPON ----------- Improved Light Cannon Improved Light Cannon > --- INVENTORY -------- Ion Engine Improved Treads Improved Treads Disposable Heat Sink Large Storage Unit Large Storage Unit Large Storage Unit Large Storage Unit High-capacity Storage Unit Humpback Superbattery High-capacity Matter Pod 0b10 Alert Chip Targeting Computer Utility Shielding Improved Weapon Shielding Light Armor Plating YOLO Cannon Improved Light Cannon Improved Light Cannon Grenade Launcher Katana [Rating: 18] Favorites ----------- Power Ion Engine Engine Ion Engine Propulsion Improved Treads Treads Improved Treads Leg Aluminum Leg Wheel Wheel Utility Large Storage Unit Storage Large Storage Unit Protection Utility Shielding Weapon Improved Light Cannon Ballistic Gun Assault Rifle Ballistic Cannon Improved Light Cannon Special Weapon Mining Laser Build | -11 -10 -10 -10 ------- Run | Scr Mat Min Exi Slots Evolved . | . . . . Power . | . . . . Propulsion . | . . . . Utility . | . . . . Weapon . | . . . . Parts Attached 30 | 9 13 1 7 Power 2 | . 2 . . Engine 2 | . 2 . . Core . | . . . . Reactor . | . . . . Propulsion 12 | 9 2 1 . Treads 3 | . 2 1 . Leg . | . . . . Wheel 9 | 9 . . . Hover . | . . . . Flight . | . . . . Utility 9 | . 4 . 5 Device . | . . . . Storage 7 | . 4 . 3 Processor . | . . . . Hackware . | . . . . Protection 2 | . . . 2 Artifact . | . . . . Weapon 7 | . 5 . 2 Energy Gun . | . . . . Energy Cannon . | . . . . Ballistic Gun . | . . . . Ballistic Cannon 6 | . 4 . 2 Launcher . | . . . . Special Weapon 1 | . 1 . . Impact Weapon . | . . . . Slashing Weapon . | . . . . Piercing Weapon . | . . . . Special Melee Weapon . | . . . . Unidentified Prototypes . | . . . . Parts Lost 6 | . . . 6 Power 1 | . . . 1 Propulsion 2 | . . . 2 Utility 1 | . . . 1 Weapon 2 | . . . 2 Highest Loss Streak 6 | . . . 6 Average Slot Usage (%) 96 | . 98 100 87 Engine 13 | . 13 14 13 Treads 25 | . 24 28 25 Wheel 1 | . 3 . . Storage 25 | . 27 28 16 Ballistic Gun 1 | . 3 . . Ballistic Cannon 26 | . 24 28 28 Naked Turns . | . . . . Heaviest Build 93 | 13 45 45 93 Greatest Support 46 | 26 46 46 45 Greatest Overweight (x) 2 | 1 1 . 2 Average Overweight (x) . | . . . 1 Largest Inventory Capacity 24 | 6 16 16 24 Average Capacity 15 | 6 14 16 19 Most Carried 24 | 6 16 16 24 Average Carried 14 | 5 14 15 16 Final Capacity 16 | 6 16 16 12 Final Carried 16 | 6 16 16 . Class Distribution -------------------- 87% | Mutant 12% | Hauler-Mutant Dominant Class ---------------- Mutant | -10/Materials Mutant | -10/Mines Hauler-Mutant | -10/Exiles Resources | -11 -10 -10 -10 ----------- Run | Scr Mat Min Exi Matter Collected 1261 | 428 546 197 90 Remotely . | . . . . Salvage Created 765 | 226 365 174 . Parts 56 | 13 26 17 . Haulers Intercepted 2 | . 2 . . Recyclers Shooed 1 | . 1 . . Parts Field Recycled . | . . . . Retrieved Matter . | . . . . Parts Self-Destructed . | . . . . Prevented . | . . . . Kills | -11 -10 -10 -10 ------- Run | Scr Mat Min Exi Combat Hostiles Destroyed 22 | . 13 9 . Guns 3 | . 3 . . Cannons 19 | . 10 9 . Classes Destroyed 8 | 3 5 . . Worker 3 | 2 1 . . Tunneler 5 | 5 . . . Hauler 2 | . 2 . . Recycler 1 | 1 . . . Operator 1 | . 1 . . Watcher 3 | . 3 . . Swarmer 9 | . 6 3 . Grunt 13 | . 7 6 . Best Kill Streak 4 | 3 4 4 . Combat Bots Only 4 | . 3 4 . Max Kills in Single Turn 1 | 1 1 1 . Gunslinging . | . . . . Exploded . | . . . . Melee . | . . . . Uniques/NPCs Destroyed . | . . . . Combat | -11 -10 -10 -10 -------- Run | Scr Mat Min Exi Damage Taken 1450 | . 354 252 844 Core 255 | . 30 18 207 Absorbed by Shields . | . . . . Core Remaining (%) 100 | 100 . . . Volleys Fired 133 | 23 56 20 34 Largest 2 | 2 2 2 2 Hottest 100 | 40 100 78 78 Shots Fired 262 | 46 111 40 65 Gun 70 | 46 24 . . Cannon 191 | . 86 40 65 Launcher . | . . . . Special 1 | . 1 . . Kinetic 261 | 46 110 40 65 Thermal 1 | . 1 . . Explosive . | . . . . Electromagnetic . | . . . . Robot Hit Streak 12 | 9 12 8 11 Robot Miss Streak 4 | 3 3 2 4 Penetration Max . | . . . . Secondary Targets 1 | . 1 . . Max Gunslinging Chain 1 | . 1 . . Shots Hit Robots 163 | 30 69 28 36 Core Hits 48 | 9 22 12 5 Critical Hits 4 | . 3 . 1 Critical Kills 1 | . 1 . . Critical Parts Destroyed 2 | . 2 . . Melee Attacks . | . . . . Impact . | . . . . Slashing . | . . . . Piercing . | . . . . Sneak Attacks . | . . . . Combat Hostiles . | . . . . Follow-up Attacks . | . . . . Damage Inflicted 2881 | 353 1221 571 736 Guns 541 | 353 188 . . Cannons 2340 | . 1033 571 736 Explosions . | . . . . Melee . | . . . . Ramming . | . . . . Kinetic 2881 | 353 1221 571 736 Thermal . | . . . . Explosive . | . . . . Electromagnetic . | . . . . Impact . | . . . . Slashing . | . . . . Piercing . | . . . . Highest Corruption . | . . . . Average Corruption . | . . . . Corruption Purged . | . . . . Overload Shots . | . . . . Overflow Damage 56 | . 48 8 . Projectiles 56 | . 48 8 . Explosions . | . . . . Melee . | . . . . Knockbacks 28 | . 12 7 9 Impact . | . . . . Kinetic 28 | . 12 7 9 Secondary . | . . . . Self-Inflicted Damage . | . . . . Shots . | . . . . Rammed . | . . . . Targets Rammed . | . . . . Kicked . | . . . . Crushed . | . . . . Highest Temperature 330 | 6 126 195 330 Average Temperature 101 | 6 33 82 224 Received Heat Transfer 150 | . 54 96 . Effects 2 | . . . 2 Matter Decay 1 | . . . 1 Short Circuit 1 | . . . 1 Siege Activations . | . . . . Robots Corrupted . | . . . . Combat Hostiles . | . . . . Parts Fried . | . . . . Impact Corruptions . | . . . . Robots Melted . | . . . . Combat Hostiles . | . . . . Parts Melted . | . . . . Heat Transferred . | . . . . Parts Sabotaged . | . . . . Parts Stolen . | . . . . Parts Stripped . | . . . . Power Chain Reactions . | . . . . Missiles Intercepted . | . . . . Alert | -11 -10 -10 -10 ------- Run | Scr Mat Min Exi Peak Influence 280 | 40 280 277 . Average Influence 134 | 22 151 124 . Maximum Alert Level 1 | . 1 1 . Low Security (%) 77 | 100 71 83 . Level 1 22 | . 28 16 . Level 2 . | . . . . Level 3 . | . . . . Level 4 . | . . . . Level 5 . | . . . . High Security . | . . . . Max Security . | . . . . Squads Dispatched 4 | . 4 . . Investigation 3 | . 3 . . Extermination . | . . . . Reinforcement 1 | . 1 . . Assault . | . . . . Garrison . | . . . . Intercept . | . . . . Construction Impeded . | . . . . Haulers Reinforced . | . . . . Stealth | -11 -10 -10 -10 --------- Run | Scr Mat Min Exi Distress Signals . | . . . . Communications Jammed . | . . . . Distress Signals . | . . . . Times Spotted 36 | . 26 9 1 Peak Tracking Total 5 | . 5 4 3 Tactical Retreats 2 | . 2 . . Traps | -11 -10 -10 -10 ------- Run | Scr Mat Min Exi Traps Triggered 2 | . 2 . . Indirectly . | . . . . Trap Hack Attempts . | . . . . Triggered . | . . . . Disarmed . | . . . . Reprogrammed . | . . . . Reused . | . . . . Traps Extracted . | . . . . Installed . | . . . . Triggered . | . . . . Exploded 1 | . . . 1 Machines | -11 -10 -10 -10 ---------- Run | Scr Mat Min Exi Machines Disabled 6 | . 1 1 4 Max in Single Turn 1 | . 1 1 1 Machines Sabotaged . | . . . . Garrisons Compromised . | . . . . Overloaded Fab Kills . | . . . . Fab Network Shutdowns . | . . . . Hacking | -11 -10 -10 -10 --------- Run | Scr Mat Min Exi Machines Accessed 12 | . 10 . 2 Terminals 7 | . 7 . . Fabricators . | . . . . Repair Stations 1 | . 1 . . Recycling Units 2 | . 2 . . Scanalyzers . | . . . . Garrison Access . | . . . . Total Hacks 24 | . 22 . 2 Successful 18 | . 16 . 2 Failed 6 | . 6 . . Catastrophic 2 | . 2 . . Database Lockouts . | . . . . Manual 18 | . 17 . 1 Terminals 16 | . 16 . . Fabricators . | . . . . Repair Stations 4 | . 4 . . Recycling Units 2 | . 2 . . Scanalyzers . | . . . . Garrison Access . | . . . . Terminal Hacks 5 | . 3 . 2 Record 1 | . . . 1 Part Schematic 1 | . 1 . . Locate Traps 1 | . 1 . . Recall Investigation 1 | . 1 . . EX-Prototype ID Bank 1 | . . . 1 Fabricator Hacks . | . . . . Repair Station Hacks 4 | . 4 . . Scan Component 2 | . 2 . . Repair 2 | . 2 . . Recycling Unit Hacks . | . . . . Scanalyzer . | . . . . Garrison Access Hacks . | . . . . Unauthorized Hacks 9 | . 9 . . Terminals 7 | . 7 . . Track 3 | . 3 . . Botnet 3 | . 3 . . Disrupt 1 | . 1 . . Fabricators . | . . . . Repair Stations . | . . . . Recycling Units 2 | . 2 . . Tunnel 2 | . 2 . . Scanalyzers . | . . . . Garrison Access . | . . . . Data Cores Recovered . | . . . . Used . | . . . . Hacking Detections 8 | . 8 . . Full Trace Events . | . . . . Feedback Events . | . . . . Feedback Blocked . | . . . . Robot Schematics Acquired . | . . . . Robots Built . | . . . . Matter . | . . . . Time . | . . . . Total Robot Build Rating . | . . . . Part Schematics Acquired 1 | . 1 . . Parts Built . | . . . . Matter . | . . . . Time . | . . . . Total Part Build Rating . | . . . . Parts Repaired 2 | . 2 . . Time 58 | . 58 . . Parts Recycled . | . . . . Recycled Matter . | . . . . Retrieved Matter . | . . . . Retrieved Components . | . . . . Parts Scanalyzed . | . . . . Part Schematics Acquired . | . . . . Parts Damaged . | . . . . Bothacking | -11 -10 -10 -10 ------------ Run | Scr Mat Min Exi Used RIF Installer . | . . . . Robots Hacked . | . . . . Non-combat . | . . . . Combat . | . . . . Robot Hacks Applied . | . . . . Relay Couplers Released . | . . . . Robots Rewired . | . . . . Allies Hacked . | . . . . Hacks Repelled . | . . . . Allies | -11 -10 -10 -10 -------- Run | Scr Mat Min Exi Total Allies . | . . . . Largest Group . | . . . . Highest-Rated Group . | . . . . Highest-Rated Ally . | . . . . Total Orders . | . . . . Ally Attacks . | . . . . Total Damage . | . . . . Kills . | . . . . Allies Corrupted . | . . . . Allies Melted . | . . . . Intel | -11 -10 -10 -10 ------- Run | Scr Mat Min Exi Robot Analysis Total . | . . . . Derelict Logs Recovered 1 | . . 1 . Drone Launches . | . . . . Drone Recoveries . | . . . . Exploration | -11 -10 -10 -10 ------------- Run | Scr Mat Min Exi Turns Passed 3194 | 164 1510 767 753 Spaces Moved 1669 | 88 796 443 342 Core . | . . . . Treads 1425 | . 640 443 342 Legs 19 | 19 . . . Wheels 225 | 69 156 . . Hover . | . . . . Flight . | . . . . Fastest Speed 80 | 80 80 152 152 Average Speed 151 | 91 145 153 178 Slowest Speed 192 | 120 180 160 192 Overloaded Moves . | . . . . Propulsion Burnouts . | . . . . Robots Hopped . | . . . . Cave-ins Triggered . | . . . . Exploration Rate (%) 62 | 3 95 86 67 Regions Visited 3 Branch Regions 2 Pre-discovered Areas 4 | . 2 1 1 Known Exits Taken . | . . . . Unknown Exits Taken 3 | 1 1 1 . Scrap Searched 1 | . . 1 . Spaces Dug 1 | . 1 . . Terrain Destroyed 9 | . 3 2 4 Melee . | . . . . Projectile 9 | . 3 2 4 AOE . | . . . . Actions | -11 -10 -10 -10 --------- Run | Scr Mat Min Exi Total 2079 | 130 1038 491 420 Wait 167 | . 136 23 8 Move 1666 | 87 795 442 342 Hop . | . . . . Pick Up 44 | 2 18 2 22 Fast Attach 14 | 2 7 1 4 Attach 3 | 1 . . 2 Detach 4 | . 4 . . Swap 13 | 6 6 . 1 Drop 35 | 9 16 3 7 Fire 133 | 23 56 20 34 Melee . | . . . . Ram . | . . . . Kick . | . . . . Crush . | . . . . Escape Stasis . | . . . . Rewire . | . . . . Trap . | . . . . Miscellaneous . | . . . . Route ------- -11/Scrapyard -10/Materials (discovered 3 exits: [*Mat x2] / [*Min]) -10/Mines (discovered 2 exits: [*Mat] / *Exi) -10/Exiles History --------- Turn | Location | Event 1 | -11/Scrapyard | Discovered new exit (range 1) 165 | -11/Scrapyard | Entered Materials 173 | -10/Materials | Discovered new exit (range 9) 310 | -10/Materials | Build established: Mutant 1096 | -10/Materials | Discovered new exit (range 4) 1195 | -10/Materials | Repaired Imp. Light Cannon 1222 | -10/Materials | Repaired Ion Engine 1538 | -10/Materials | Discovered new exit (range 15) 1675 | -10/Materials | Entered Mines 1847 | -10/Mines | Discovered new exit (range 7) 1850 | -10/Mines | Met a Derelict who couldn't figure out how to use a Trap Extractor 2158 | -10/Mines | Deemed a non-threat by the Exiles lab entrance 2436 | -10/Mines | Discovered new exit (range 5) 2442 | -10/Mines | Entered Exiles 2480 | -10/Exiles | Met 8R-AWN 2505 | -10/Exiles | Met EX-HEX 2583 | -10/Exiles | Met EX-DEC 2613 | -10/Exiles | Learned location of Zion (-6) 2794 | -10/Exiles | Met EX-BIN 2823 | -10/Exiles | Aligned with FarCom system 2825 | -10/Exiles | Given EX-Vault access code 2871 | -10/Exiles | Opened EX-Vault 2888 | -10/Exiles | Found Superbattery 2891 | -10/Exiles | Found 0b10 Alert Chip 2908 | -10/Exiles | Found YOLO Cannon 2949 | -10/Exiles | Warned to stay clear of 0b10 Research branches 2952 | -10/Exiles | Exiles lab attacked by MAIN.C 2963 | -10/Exiles | Build established: Hauler-Mutant 3094 | -10/Exiles | Attacked by the Exiles 3129 | -10/Exiles | Core integrity fell below 50% 3158 | -10/Exiles | Core integrity fell below 20% 3192 | -10/Exiles | Lost 6 parts (1p2n1u2w) 3195 | -10/Exiles | Destroyed by 8R-AWN with 8R-AWN's Boregun Last Messages --------------- 03152_ Penetrated by HV Slug. 03152_ Ion Engine destroyed. 03153_ Overheating: Matter decay (-29). 03157_ Penetrated by HV Slug. 03157_ HV Slug penetrates Wall. 03157_ HV Slug penetrates Earth. 03161_ Penetrated by HV Slug. 03161_ Critical hit. 03161_ Imp. Light Cannon destroyed. 03161_ Penetrated by HV Slug. 03174_ HV Slug penetrates Machine. 03174_ Machine disabled. 03174_ HV Slug penetrates Wall. 03178_ Penetrated by HV Slug. 03182_ HV Slug penetrates Earth. 03185_ 8R-AWN knocked back. 03186_ Penetrated by HV Slug. 03191_ Imp. Light Cannon permanently disabled. 03191_ Overheating: Short circuit. 03191_ Penetrated by HV Slug. Map ----- +----------------------------------------------------+ | ?????????????????????????????????????????????????? | | ?????????????????????????????????????????????????? | | ?????????????????????????????????????????????????? | | ?????????????????????????????????????????????????? | | ?????????????????????????????????????????????????? | | ?????????????????????????????????????????????????? | | ?????????????????????????????????????????????????? | | ?????????????????????????????????????????????????? | | ?????????????????????????????????????????????????# | | ?????????????????????????????????????????????????# | | ?????????????????????????????????????????????????# | | ?????????????????????????????????????????????????# | | ?????????????????????????????????????????????????? | | ?????????????????????????????????????????????????? | | ???????????????????????????????????? ????????????? | | ??????????????????????????????????? ?????????????? | | ????????? ??????????????#######??# ??????????????? | | ????????? ######???????#!!! #?# #??????????????? | | ???????? #""#??????# # #???????????????? | | ???????? ??????# # #????????????????? | | ????????" #????## ;#???????????##????? | | ????????" #####" #???????????? """?? | | ?????????# ## ? #??????????" """#? | | ??????????# #"" ] #;;#???????????" ?? | | ?????????????# =!= !; #???????????"" ?? | | ????????????????# !%@!!;#????????????"" "#? | | ????????????????### !! !/"#???????????? ""?? | | ??????????######## =!!! ###???????????" "??? | | ??????????# """" *!!] ##??????????# #??? | | ??????????#! ;;#" ######???### ###? | | ??????????#! ; ##" """#####X# #"## | | ??????????#! ###?#" """ | | ??????????# ! g###???#"# "" | | ??????????##########?????#### " | | ????????????????????????????### | | ??????????????????????????????### | | ????????????????????????????????## | | ?????????????????????????????????## | | ??????????????????????????????????##" | | ???????????????????????????????????#""" | | ??????????????????????????????????##" | | ??????????????????????????????????#"" | | ??????????????????????????????????#""" " | | ??????????????????????????????????""" "" | | ??????????????????????????????????""" " | | ??????????????????????????????????"" | | ??????????????????????????????????""" | | ??????????????????????????????????"" | | ??????????????????????????????????#"" | | ??????????????????????????????????#"""" | +----------------------------------------------------+ Best States ------------- Heat Dissipation 25 Energy Generation 10 Energy Capacity 250 Matter Stores 300 Matter Capacity 300 Sight Range 16 Terrain Scan Density 10 Utility Shielding 33 Weapon Shielding 66 Evasion (%) 44 Recoil Reduction 2 Item Schematics ----------------- Hcp. Storage Unit | -10/Materials | Hacked Robot Schematics ------------------ None Fabricated ------------ Nothing Alien Tech Used ----------------- None Achievements -------------- None Challenges ------------ None Game ------ Seed IonicLargeScrap Manual? 0 Play Time 00:23:04 Cumulative 224.3 hours Start 2020.06.12 @ 09:58:02 End 2020.06.12 @ 10:21:17 Sessions 1 Manual Loads 0 Difficulty Rogue Special Mode None Game No. 294 Rogue 283 Adventurer 11 Explorer 0 Win Type - Total 0 Types 0/0/0/0/0/0/0 Lore% 53 Gallery% 66 Achievement% 45 Wizard Run 0 Options --------- ASCII 0 Keyboard 1 Movement Numpad Keybinds 0 Fullscreen 1 Font 12/Terminus Map View 83x54 Tactical HUD 1 Map Filters NONE Filters NONE Steam 1 RUN: 8e180d5e-d6ef-46ba-8cbe-4598e798cb8c